[Event "*** SCC Grand Prix: Titled Tuesday Blitz"]
[Site "Chess.com"]
[Date "2020.09.08"]
[Round "2"]
[White "annacramling"]
[Black "aa175"]
[Result "1-0"]
[WhiteElo "2136"]
[BlackElo "2384"]
[TimeControl "180+1"]
[EndTime "10:19:05 PDT"]
[Termination "annacramling won on time"]

1. d4 {[%clk 0:03:00.9]} 1... Nf6 {[%clk 0:02:56]} 2. c4 {[%clk 0:03:00.1]} 2...
g6 {[%clk 0:02:55.4]} 3. Nc3 {[%clk 0:02:59.9]} 3... d5 {[%clk 0:02:54.5]} 4.
cxd5 {[%clk 0:02:59]} 4... Nxd5 {[%clk 0:02:55.4]} 5. e4 {[%clk 0:02:59.4]} 5...
Nxc3 {[%clk 0:02:55.6]} 6. bxc3 {[%clk 0:03:00.3]} 6... Bg7 {[%clk 0:02:55.9]}
7. Qa4+ {[%clk 0:03:00.1]} 7... c6 {[%clk 0:02:51.5]} 8. Nf3 {[%clk 0:02:59.3]}
8... O-O {[%clk 0:02:51.3]} 9. Be3 {[%clk 0:02:56.2]} 9... Nd7 {[%clk
0:02:34.6]} 10. Rd1 {[%clk 0:02:50]} 10... Nb6 {[%clk 0:02:33.7]} 11. Qa3 {[%clk
0:02:48.4]} 11... Qd6 {[%clk 0:02:30]} 12. Qc1 {[%clk 0:02:45.3]} 12... Bg4
{[%clk 0:02:27.8]} 13. Be2 {[%clk 0:02:43.4]} 13... f5 {[%clk 0:02:22.7]} 14. e5
{[%clk 0:02:15.9]} 14... Qe6 {[%clk 0:02:14.7]} 15. Ng5 {[%clk 0:02:05.5]} 15...
Qxa2 {[%clk 0:02:13.8]} 16. Bxg4 {[%clk 0:01:59.7]} 16... fxg4 {[%clk
0:02:13.7]} 17. O-O {[%clk 0:01:56.1]} 17... Qd5 {[%clk 0:02:08.1]} 18. Qc2
{[%clk 0:01:44.4]} 18... Nc4 {[%clk 0:01:59.6]} 19. Ne4 {[%clk 0:01:20.6]} 19...
a5 {[%clk 0:01:55.3]} 20. Nc5 {[%clk 0:01:19.4]} 20... b6 {[%clk 0:01:39.7]} 21.
Nd3 {[%clk 0:01:17.4]} 21... a4 {[%clk 0:01:34.8]} 22. Nf4 {[%clk 0:01:11.4]}
22... Rxf4 {[%clk 0:01:22.7]} 23. Bxf4 {[%clk 0:01:10.9]} 23... a3 {[%clk
0:01:21.9]} 24. Bg5 {[%clk 0:00:55.9]} 24... e6 {[%clk 0:01:15.6]} 25. Ra1
{[%clk 0:00:48.9]} 25... b5 {[%clk 0:01:08.3]} 26. Be7 {[%clk 0:00:43.3]} 26...
Kf7 {[%clk 0:01:03.2]} 27. Bb4 {[%clk 0:00:41.9]} 27... h5 {[%clk 0:00:44.7]}
28. Qb3 {[%clk 0:00:21.2]} 28... Nd2 {[%clk 0:00:19.5]} 29. Qxd5 {[%clk
0:00:20.2]} 29... exd5 {[%clk 0:00:20.4]} 30. Rfd1 {[%clk 0:00:19.8]} 30... Nc4
{[%clk 0:00:18.9]} 31. Ra2 {[%clk 0:00:18.5]} 31... Ke6 {[%clk 0:00:18.5]} 32.
Rda1 {[%clk 0:00:18.2]} 32... Bf8 {[%clk 0:00:12.7]} 33. Bxf8 {[%clk 0:00:10.4]}
33... Rxf8 {[%clk 0:00:13.6]} 34. Rxa3 {[%clk 0:00:08.7]} 34... Nxa3 {[%clk
0:00:14.5]} 35. Rxa3 {[%clk 0:00:09.1]} 35... Rb8 {[%clk 0:00:14.3]} 36. Kf1
{[%clk 0:00:07.6]} 36... b4 {[%clk 0:00:13.7]} 37. cxb4 {[%clk 0:00:08]} 37...
Rxb4 {[%clk 0:00:13.2]} 38. Rd3 {[%clk 0:00:07.5]} 38... Rb2 {[%clk 0:00:12.5]}
39. h3 {[%clk 0:00:04.7]} 39... Kf5 {[%clk 0:00:08.8]} 40. hxg4+ {[%clk
0:00:04.5]} 40... hxg4 {[%clk 0:00:09.7]} 41. Rc3 {[%clk 0:00:04.3]} 41... Rb6
{[%clk 0:00:04.1]} 42. f3 {[%clk 0:00:04.1]} 42... g3 {[%clk 0:00:03.6]} 43. Rc2
{[%clk 0:00:02.3]} 43... Kf4 {[%clk 0:00:03]} 44. Ke2 {[%clk 0:00:02.3]} 44...
Rb4 {[%clk 0:00:03]} 45. Kd3 {[%clk 0:00:02.2]} 45... Rb3+ {[%clk 0:00:03]} 46.
Ke2 {[%clk 0:00:02.3]} 46... Re3+ {[%clk 0:00:02.4]} 47. Kd2 {[%clk 0:00:02.7]}
47... Rb3 {[%clk 0:00:02.6]} 48. Rxc6 {[%clk 0:00:02.6]} 48... Rb2+ {[%clk
0:00:03.1]} 49. Rc2 {[%clk 0:00:02.2]} 49... Rb1 {[%clk 0:00:03.5]} 50. Kd3
{[%clk 0:00:01.7]} 50... Rd1+ {[%clk 0:00:03]} 51. Kc3 {[%clk 0:00:01.9]} 51...
Re1 {[%clk 0:00:03.1]} 52. Kb4 {[%clk 0:00:02.8]} 52... Ke3 {[%clk 0:00:02.4]}
53. Rc3+ {[%clk 0:00:03.1]} 53... Kxd4 {[%clk 0:00:02.6]} 54. Rc6 {[%clk
0:00:03.6]} 54... Rb1+ {[%clk 0:00:02.5]} 55. Ka5 {[%clk 0:00:03.1]} 55... Kxe5
{[%clk 0:00:02.9]} 56. Rxg6 {[%clk 0:00:03]} 56... Kf4 {[%clk 0:00:01.8]} 57.
Rf6+ {[%clk 0:00:03.5]} 57... Ke3 {[%clk 0:00:02]} 58. f4 {[%clk 0:00:04]} 58...
d4 {[%clk 0:00:02.4]} 59. f5 {[%clk 0:00:03.8]} 59... d3 {[%clk 0:00:02.8]} 60.
Re6+ {[%clk 0:00:04.1]} 60... Kf2 {[%clk 0:00:02.2]} 61. Rd6 {[%clk 0:00:04.1]}
1-0

[Event "*** SCC Grand Prix: Titled Tuesday Blitz"]
[Site "Chess.com"]
[Date "2020.09.08"]
[Round "2"]
[White "ARTHURMOTIVATOR"]
[Black "ShapkinAnatoliy"]
[Result "0-1"]
[WhiteElo "2344"]
[BlackElo "2658"]
[TimeControl "180+1"]
[EndTime "10:19:07 PDT"]
[Termination "ShapkinAnatoliy won on time"]

1. e4 {[%clk 0:03:00.9]} 1... e5 {[%clk 0:02:59.6]} 2. Nc3 {[%clk 0:02:59.5]}
2... Nf6 {[%clk 0:02:59.4]} 3. g3 {[%clk 0:02:58.4]} 3... d5 {[%clk 0:02:59.2]}
4. exd5 {[%clk 0:02:56.9]} 4... Nxd5 {[%clk 0:03:00.1]} 5. Bg2 {[%clk
0:02:57.1]} 5... Nf6 {[%clk 0:03:00.6]} 6. d3 {[%clk 0:02:45.5]} 6... h6 {[%clk
0:03:00.2]} 7. Nf3 {[%clk 0:02:43.9]} 7... Nc6 {[%clk 0:03:00.5]} 8. O-O {[%clk
0:02:43.7]} 8... Bc5 {[%clk 0:03:01]} 9. h3 {[%clk 0:02:33.9]} 9... O-O {[%clk
0:03:01]} 10. Re1 {[%clk 0:02:32.9]} 10... Re8 {[%clk 0:03:00.4]} 11. Be3 {[%clk
0:02:02.8]} 11... Nd4 {[%clk 0:02:51.9]} 12. Ne4 {[%clk 0:01:38.1]} 12... Nxe4
{[%clk 0:02:35.1]} 13. dxe4 {[%clk 0:01:37.9]} 13... Nxf3+ {[%clk 0:02:33.7]}
14. Qxf3 {[%clk 0:01:35.6]} 14... Bxe3 {[%clk 0:02:29.6]} 15. Qxe3 {[%clk
0:01:35.5]} 15... Be6 {[%clk 0:02:27.8]} 16. Rad1 {[%clk 0:01:26.8]} 16... Qe7
{[%clk 0:02:26.6]} 17. a3 {[%clk 0:01:26.5]} 17... a5 {[%clk 0:02:24.1]} 18. Rd2
{[%clk 0:01:21.9]} 18... Red8 {[%clk 0:02:15.8]} 19. Red1 {[%clk 0:01:21.9]}
19... Rxd2 {[%clk 0:02:16.1]} 20. Qxd2 {[%clk 0:01:21.6]} 20... Qc5 {[%clk
0:02:13.4]} 21. g4 {[%clk 0:01:07.2]} 21... Qe7 {[%clk 0:01:57.1]} 22. Bf1
{[%clk 0:01:03.3]} 22... Qg5 {[%clk 0:01:55.2]} 23. Qxg5 {[%clk 0:00:54.2]}
23... hxg5 {[%clk 0:01:56.1]} 24. Kg2 {[%clk 0:00:45.4]} 24... Kf8 {[%clk
0:01:53.2]} 25. Kg3 {[%clk 0:00:44.5]} 25... Ke7 {[%clk 0:01:53.4]} 26. h4
{[%clk 0:00:43]} 26... gxh4+ {[%clk 0:01:54.3]} 27. Kxh4 {[%clk 0:00:42.5]}
27... Rh8+ {[%clk 0:01:52.2]} 28. Kg3 {[%clk 0:00:40.8]} 28... g5 {[%clk
0:01:41.2]} 29. Be2 {[%clk 0:00:35.9]} 29... c6 {[%clk 0:01:27.7]} 30. Bf3
{[%clk 0:00:33.3]} 30... a4 {[%clk 0:01:24.7]} 31. Be2 {[%clk 0:00:32.2]} 31...
b5 {[%clk 0:01:14.1]} 32. Kg2 {[%clk 0:00:31.2]} 32... Rb8 {[%clk 0:01:09.2]}
33. Rd2 {[%clk 0:00:23.8]} 33... c5 {[%clk 0:01:05.3]} 34. c3 {[%clk 0:00:22]}
34... b4 {[%clk 0:01:03.8]} 35. cxb4 {[%clk 0:00:20.6]} 35... cxb4 {[%clk
0:01:03.8]} 36. axb4 {[%clk 0:00:20.6]} 36... Rxb4 {[%clk 0:01:03.2]} 37. f3
{[%clk 0:00:20.7]} 37... Bb3 {[%clk 0:00:46.5]} 38. Kf2 {[%clk 0:00:20]} 38...
Rb8 {[%clk 0:00:46.5]} 39. Ke3 {[%clk 0:00:14.1]} 39... Rc8 {[%clk 0:00:43.8]}
40. Bd1 {[%clk 0:00:11.4]} 40... Bxd1 {[%clk 0:00:20.1]} 41. Rxd1 {[%clk
0:00:10.9]} 41... Rb8 {[%clk 0:00:21]} 42. Ra1 {[%clk 0:00:09.7]} 42... Rb3+
{[%clk 0:00:20.5]} 43. Kf2 {[%clk 0:00:05]} 43... Rxb2+ {[%clk 0:00:21.4]} 44.
Kg3 {[%clk 0:00:05.2]} 44... Rb4 {[%clk 0:00:21.8]} 45. Ra3 {[%clk 0:00:05.2]}
45... Ke6 {[%clk 0:00:21.4]} 46. Kf2 {[%clk 0:00:05.5]} 46... Kd6 {[%clk
0:00:21.8]} 47. Ke2 {[%clk 0:00:05.9]} 47... Kc5 {[%clk 0:00:22.3]} 48. Kd2
{[%clk 0:00:05.9]} 48... Rc4 {[%clk 0:00:22]} 49. Kd3 {[%clk 0:00:04.6]} 49...
Kb4 {[%clk 0:00:22.1]} 50. Ra1 {[%clk 0:00:03.9]} 50... Rd4+ {[%clk 0:00:21.9]}
51. Ke3 {[%clk 0:00:03.2]} 51... a3 {[%clk 0:00:21.3]} 52. Rb1+ {[%clk
0:00:04.1]} 52... Kc3 {[%clk 0:00:21.4]} 53. Rb8 {[%clk 0:00:04]} 53... Ra4
{[%clk 0:00:21.8]} 54. Rc8+ {[%clk 0:00:04]} 54... Kb2 {[%clk 0:00:21.5]} 55.
Rb8+ {[%clk 0:00:04.4]} 55... Kc2 {[%clk 0:00:20.3]} 56. Rc8+ {[%clk 0:00:03.9]}
56... Kb3 {[%clk 0:00:20.8]} 57. Rb8+ {[%clk 0:00:01.9]} 57... Rb4 {[%clk
0:00:21.2]} 58. Ra8 {[%clk 0:00:02]} 58... a2 {[%clk 0:00:21.3]} 59. Kd3 {[%clk
0:00:02.3]} 59... Rd4+ {[%clk 0:00:20.6]} 60. Ke3 {[%clk 0:00:02.2]} 60... Ra4
{[%clk 0:00:21.5]} 61. Rb8+ {[%clk 0:00:02.4]} 61... Ka3 {[%clk 0:00:21.7]} 0-1

[Event "*** SCC Grand Prix: Titled Tuesday Blitz"]
[Site "Chess.com"]
[Date "2020.09.08"]
[Round "2"]
[White "talyamania"]
[Black "ChadaevNikolay"]
[Result "1/2-1/2"]
[WhiteElo "2349"]
[BlackElo "2811"]
[TimeControl "180+1"]
[EndTime "10:19:07 PDT"]
[Termination "Game drawn by repetition"]

1. e4 {[%clk 0:03:00.9]} 1... c5 {[%clk 0:02:34]} 2. Nf3 {[%clk 0:02:57.9]} 2...
e6 {[%clk 0:02:34.2]} 3. d4 {[%clk 0:02:57.3]} 3... cxd4 {[%clk 0:02:34]} 4.
Nxd4 {[%clk 0:02:57.8]} 4... a6 {[%clk 0:02:34.2]} 5. Bd3 {[%clk 0:02:57.2]}
5... Bc5 {[%clk 0:02:29.8]} 6. Nb3 {[%clk 0:02:56.9]} 6... Be7 {[%clk
0:02:29.8]} 7. Qg4 {[%clk 0:02:56.4]} 7... Bf6 {[%clk 0:02:28.8]} 8. c4 {[%clk
0:02:52.2]} 8... Ne7 {[%clk 0:02:24.1]} 9. O-O {[%clk 0:02:50.7]} 9... Nbc6
{[%clk 0:02:21.3]} 10. Qe2 {[%clk 0:02:43.5]} 10... O-O {[%clk 0:02:17.9]} 11.
Nc3 {[%clk 0:02:42.2]} 11... d6 {[%clk 0:02:06.4]} 12. Be3 {[%clk 0:02:39.8]}
12... Nb4 {[%clk 0:02:00.4]} 13. Rad1 {[%clk 0:02:24.7]} 13... Qc7 {[%clk
0:01:51.4]} 14. Bb1 {[%clk 0:02:21.1]} 14... Rd8 {[%clk 0:01:43.3]} 15. f4
{[%clk 0:02:19.8]} 15... b6 {[%clk 0:01:40.2]} 16. Rc1 {[%clk 0:02:05.3]} 16...
Bb7 {[%clk 0:01:15.1]} 17. a3 {[%clk 0:01:58.6]} 17... Nbc6 {[%clk 0:01:14.6]}
18. Nd5 {[%clk 0:01:51.9]} 18... exd5 {[%clk 0:01:14.6]} 19. cxd5 {[%clk
0:01:51.5]} 19... Qb8 {[%clk 0:01:06.9]} 20. dxc6 {[%clk 0:01:51]} 20... Bxc6
{[%clk 0:01:07.8]} 21. Bd4 {[%clk 0:01:37.6]} 21... Bb5 {[%clk 0:01:03.5]} 22.
Bd3 {[%clk 0:01:28.4]} 22... Bxd4+ {[%clk 0:01:03.2]} 23. Nxd4 {[%clk
0:01:27.5]} 23... Bxd3 {[%clk 0:01:03.3]} 24. Qxd3 {[%clk 0:01:27.4]} 24... Qb7
{[%clk 0:01:03.5]} 25. Rfd1 {[%clk 0:01:19.8]} 25... Rac8 {[%clk 0:01:02.4]} 26.
f5 {[%clk 0:01:15]} 26... Rxc1 {[%clk 0:01:00.1]} 27. Rxc1 {[%clk 0:01:14.5]}
27... Rc8 {[%clk 0:01:01]} 28. Rf1 {[%clk 0:01:11.6]} 28... Nc6 {[%clk
0:01:00.1]} 29. Nxc6 {[%clk 0:01:09.1]} 29... Qxc6 {[%clk 0:01:01]} 30. f6
{[%clk 0:01:06.7]} 30... Qc5+ {[%clk 0:00:58.9]} 31. Kh1 {[%clk 0:01:05.2]}
31... Qc4 {[%clk 0:00:59]} 32. Qf3 {[%clk 0:01:02]} 32... Qe6 {[%clk 0:00:56.5]}
33. fxg7 {[%clk 0:01:00.9]} 33... Rc4 {[%clk 0:00:54.1]} 34. h3 {[%clk
0:00:47.2]} 34... Rxe4 {[%clk 0:00:53.2]} 35. Qc3 {[%clk 0:00:45.4]} 35... Re2
{[%clk 0:00:46.2]} 36. Qd3 {[%clk 0:00:20.6]} 36... Rxb2 {[%clk 0:00:41.7]} 37.
Qxa6 {[%clk 0:00:19.5]} 37... Kxg7 {[%clk 0:00:35.5]} 38. Qa8 {[%clk 0:00:16.5]}
38... d5 {[%clk 0:00:32.8]} 39. Qd8 {[%clk 0:00:15]} 39... Qg6 {[%clk
0:00:31.8]} 40. Rg1 {[%clk 0:00:12.5]} 40... Qf5 {[%clk 0:00:28.9]} 41. Qh4
{[%clk 0:00:09.8]} 41... Re2 {[%clk 0:00:24.9]} 42. Qd4+ {[%clk 0:00:09.3]}
42... Kg6 {[%clk 0:00:23.7]} 43. Qxb6+ {[%clk 0:00:09.1]} 43... Re6 {[%clk
0:00:23.8]} 44. Qd4 {[%clk 0:00:08.5]} 44... Re4 {[%clk 0:00:23.9]} 45. Qd3
{[%clk 0:00:07.9]} 45... Ra4 {[%clk 0:00:21.4]} 46. Qg3+ {[%clk 0:00:07.7]}
46... Qg5 {[%clk 0:00:21.1]} 47. Qd3+ {[%clk 0:00:07.3]} 47... Kg7 {[%clk
0:00:21]} 48. Qc3+ {[%clk 0:00:07.1]} 48... d4 {[%clk 0:00:21]} 49. Qb3 {[%clk
0:00:06.7]} 49... Ra5 {[%clk 0:00:20.8]} 50. Rf1 {[%clk 0:00:05.8]} 50... Qd5
{[%clk 0:00:20]} 51. Qg3+ {[%clk 0:00:04.8]} 51... Qg5 {[%clk 0:00:19.8]} 52.
Qb3 {[%clk 0:00:03.5]} 52... Rd5 {[%clk 0:00:18.9]} 53. Qd3 {[%clk 0:00:02.4]}
53... Qg6 {[%clk 0:00:18.3]} 54. Qf3 {[%clk 0:00:01.7]} 54... Rd6 {[%clk
0:00:17.3]} 55. Qf4 {[%clk 0:00:01.5]} 55... d3 {[%clk 0:00:17.4]} 56. Qe5+
{[%clk 0:00:01.4]} 56... Rf6 {[%clk 0:00:17.4]} 57. Qd4 {[%clk 0:00:01.4]} 57...
d2 {[%clk 0:00:15]} 58. Rxf6 {[%clk 0:00:01.1]} 58... Qxf6 {[%clk 0:00:15.4]}
59. Qxd2 {[%clk 0:00:01.2]} 59... Qa1+ {[%clk 0:00:15.7]} 60. Kh2 {[%clk
0:00:01.2]} 60... Qxa3 {[%clk 0:00:16.6]} 61. Qg5+ {[%clk 0:00:01]} 61... Kf8
{[%clk 0:00:16.9]} 62. Qd8+ {[%clk 0:00:01.9]} 62... Kg7 {[%clk 0:00:17.2]} 63.
Qg5+ {[%clk 0:00:02.4]} 63... Kh8 {[%clk 0:00:17.8]} 64. Qd8+ {[%clk 0:00:02.9]}
64... Kg7 {[%clk 0:00:18.1]} 65. Qg5+ {[%clk 0:00:03.6]} 1/2-1/2

[Event "*** SCC Grand Prix: Titled Tuesday Blitz"]
[Site "Chess.com"]
[Date "2020.09.08"]
[Round "2"]
[White "Sanyura"]
[Black "rpragchess"]
[Result "0-1"]
[WhiteElo "2541"]
[BlackElo "2845"]
[TimeControl "180+1"]
[EndTime "10:19:12 PDT"]
[Termination "rpragchess won by resignation"]

1. Nf3 {[%clk 0:03:00.9]} 1... Nf6 {[%clk 0:02:59.7]} 2. c4 {[%clk 0:02:58]}
2... b6 {[%clk 0:02:56.7]} 3. g3 {[%clk 0:02:52.6]} 3... Bb7 {[%clk 0:02:56.2]}
4. Bg2 {[%clk 0:02:52.6]} 4... c5 {[%clk 0:02:56.3]} 5. O-O {[%clk 0:02:52.7]}
5... g6 {[%clk 0:02:56.8]} 6. Nc3 {[%clk 0:02:51.2]} 6... Bg7 {[%clk 0:02:56]}
7. d3 {[%clk 0:02:48.1]} 7... O-O {[%clk 0:02:52.5]} 8. e4 {[%clk 0:02:47.7]}
8... d6 {[%clk 0:02:52.6]} 9. Be3 {[%clk 0:02:34.4]} 9... Nc6 {[%clk 0:02:49.1]}
10. h3 {[%clk 0:02:32.3]} 10... Rc8 {[%clk 0:02:26.4]} 11. Qd2 {[%clk
0:02:31.8]} 11... Nd7 {[%clk 0:02:21.5]} 12. Bh6 {[%clk 0:02:29.2]} 12... e5
{[%clk 0:01:58.7]} 13. Rae1 {[%clk 0:02:22.3]} 13... a6 {[%clk 0:01:54.6]} 14.
Nh2 {[%clk 0:01:35.8]} 14... Nd4 {[%clk 0:01:49.2]} 15. Bxg7 {[%clk 0:01:29.1]}
15... Kxg7 {[%clk 0:01:47.8]} 16. Ng4 {[%clk 0:01:28.1]} 16... Qe7 {[%clk
0:01:02.7]} 17. Qh6+ {[%clk 0:01:20]} 17... Kg8 {[%clk 0:01:02.9]} 18. f4 {[%clk
0:01:20.2]} 18... f6 {[%clk 0:01:01.5]} 19. f5 {[%clk 0:01:04.2]} 19... Qg7
{[%clk 0:00:56.8]} 20. Qh4 {[%clk 0:00:39.7]} 20... g5 {[%clk 0:00:28.5]} 21.
Qh5 {[%clk 0:00:35.2]} 21... Bc6 {[%clk 0:00:27.3]} 22. h4 {[%clk 0:00:31]}
22... gxh4 {[%clk 0:00:26.6]} 23. Qxh4 {[%clk 0:00:26.9]} 23... Kf7 {[%clk
0:00:18.6]} 24. Kf2 {[%clk 0:00:26.4]} 24... Ke7 {[%clk 0:00:18.4]} 25. Rh1
{[%clk 0:00:26.1]} 25... Rh8 {[%clk 0:00:14.8]} 26. Bf3 {[%clk 0:00:26.2]} 26...
h5 {[%clk 0:00:14.3]} 27. Ne3 {[%clk 0:00:26.2]} 27... Rcg8 {[%clk 0:00:14.8]}
28. Ncd5+ {[%clk 0:00:25.8]} 28... Kd8 {[%clk 0:00:14.1]} 29. Reg1 {[%clk
0:00:25]} 29... Qh6 {[%clk 0:00:11.1]} 30. g4 {[%clk 0:00:12.4]} 30... Bxd5
{[%clk 0:00:11.2]} 31. cxd5 {[%clk 0:00:11]} 31... Qf4 {[%clk 0:00:07.7]} 32.
Qg3 {[%clk 0:00:10.5]} 32... hxg4 {[%clk 0:00:05.8]} 33. Rxh8 {[%clk 0:00:07.4]}
33... Rxh8 {[%clk 0:00:04.7]} 34. Qxf4 {[%clk 0:00:07.7]} 34... exf4 {[%clk
0:00:05.3]} 35. Nxg4 {[%clk 0:00:08.3]} 35... Ke7 {[%clk 0:00:04.7]} 36. Rh1
{[%clk 0:00:06.4]} 36... Rxh1 {[%clk 0:00:04.5]} 37. Bxh1 {[%clk 0:00:07.3]}
37... b5 {[%clk 0:00:03.8]} 38. Bf3 {[%clk 0:00:06.3]} 38... Kf7 {[%clk
0:00:04.1]} 39. Be2 {[%clk 0:00:06.1]} 39... a5 {[%clk 0:00:03.4]} 40. Bd1
{[%clk 0:00:06.3]} 40... Kg7 {[%clk 0:00:03.4]} 41. Nh2 {[%clk 0:00:05.7]} 41...
Ne5 {[%clk 0:00:03.1]} 42. Ng4 {[%clk 0:00:04.9]} 42... Nxd3+ {[%clk 0:00:02.9]}
43. Kf1 {[%clk 0:00:04.5]} 43... Nxb2 {[%clk 0:00:03.8]} 44. Bf3 {[%clk
0:00:03.7]} 44... Nc4 {[%clk 0:00:04.1]} 45. Kf2 {[%clk 0:00:03.3]} 45... Ne5
{[%clk 0:00:04.8]} 46. Bd1 {[%clk 0:00:03.3]} 46... Nxg4+ {[%clk 0:00:04.8]} 47.
Bxg4 {[%clk 0:00:04.2]} 47... Kh6 {[%clk 0:00:05.7]} 48. Bd1 {[%clk 0:00:05.1]}
48... Kg5 {[%clk 0:00:06]} 49. Kg2 {[%clk 0:00:03.4]} 49... c4 {[%clk
0:00:06.4]} 50. Kf2 {[%clk 0:00:03.8]} 50... c3 {[%clk 0:00:06.9]} 51. e5 {[%clk
0:00:03.9]} 51... fxe5 {[%clk 0:00:07]} 52. f6 {[%clk 0:00:02.9]} 52... Kxf6
{[%clk 0:00:07.4]} 0-1

[Event "*** SCC Grand Prix: Titled Tuesday Blitz"]
[Site "Chess.com"]
[Date "2020.09.08"]
[Round "2"]
[White "j_coca"]
[Black "Gusarov91"]
[Result "1-0"]
[WhiteElo "2332"]
[BlackElo "2621"]
[TimeControl "180+1"]
[EndTime "10:19:13 PDT"]
[Termination "j_coca won by checkmate"]

1. f4 {[%clk 0:02:48.9]} 1... c6 {[%clk 0:02:59.5]} 2. Nf3 {[%clk 0:02:47.5]}
2... d5 {[%clk 0:03:00.4]} 3. e3 {[%clk 0:02:47.6]} 3... Bg4 {[%clk 0:03:01]} 4.
d4 {[%clk 0:02:48.5]} 4... Nd7 {[%clk 0:03:00.6]} 5. Bd3 {[%clk 0:02:48.1]} 5...
e6 {[%clk 0:02:59.3]} 6. O-O {[%clk 0:02:48.3]} 6... Ngf6 {[%clk 0:02:57.4]} 7.
Nbd2 {[%clk 0:02:47.8]} 7... c5 {[%clk 0:02:56.7]} 8. c3 {[%clk 0:02:48]} 8...
Bd6 {[%clk 0:02:56.1]} 9. h3 {[%clk 0:02:47.4]} 9... Bf5 {[%clk 0:02:54.5]} 10.
Qe2 {[%clk 0:02:47]} 10... Bxd3 {[%clk 0:02:54]} 11. Qxd3 {[%clk 0:02:47.9]}
11... Qb6 {[%clk 0:02:53.3]} 12. Kh1 {[%clk 0:02:40.4]} 12... h5 {[%clk
0:02:49]} 13. Ne5 {[%clk 0:02:39.2]} 13... Rc8 {[%clk 0:02:44]} 14. a3 {[%clk
0:02:34.7]} 14... a5 {[%clk 0:02:43.6]} 15. Rb1 {[%clk 0:02:33.7]} 15... a4
{[%clk 0:02:43.1]} 16. Ndf3 {[%clk 0:02:32.5]} 16... Ne4 {[%clk 0:02:42.8]} 17.
Kh2 {[%clk 0:02:32.3]} 17... Ndf6 {[%clk 0:02:41.4]} 18. Bd2 {[%clk 0:02:31.5]}
18... Ng4+ {[%clk 0:02:37.7]} 19. Kg1 {[%clk 0:02:25.6]} 19... c4 {[%clk
0:02:34.8]} 20. Qc2 {[%clk 0:02:20.4]} 20... Nxe5 {[%clk 0:02:30.5]} 21. fxe5
{[%clk 0:02:16.3]} 21... Be7 {[%clk 0:02:30.7]} 22. Be1 {[%clk 0:02:16.6]} 22...
Qb3 {[%clk 0:02:29.4]} 23. Qe2 {[%clk 0:02:11.6]} 23... Bxa3 {[%clk 0:02:24.6]}
24. Bh4 {[%clk 0:02:06.7]} 24... Be7 {[%clk 0:02:19.8]} 25. Bxe7 {[%clk
0:02:06]} 25... Kxe7 {[%clk 0:02:20.4]} 26. h4 {[%clk 0:01:58.2]} 26... Ng3
{[%clk 0:02:08.3]} 27. Qf2 {[%clk 0:01:55.5]} 27... Nxf1 {[%clk 0:02:08.3]} 28.
Rxf1 {[%clk 0:01:56.4]} 28... f6 {[%clk 0:02:04.3]} 29. exf6+ {[%clk 0:01:55.5]}
29... gxf6 {[%clk 0:02:04.5]} 30. e4 {[%clk 0:01:55.8]} 30... Rhf8 {[%clk
0:01:51.3]} 31. exd5 {[%clk 0:01:54.8]} 31... exd5 {[%clk 0:01:51.6]} 32. Qe2+
{[%clk 0:01:51.1]} 32... Kd6 {[%clk 0:01:51.4]} 33. Nh2 {[%clk 0:01:48.3]} 33...
Rce8 {[%clk 0:01:49.1]} 34. Qxh5 {[%clk 0:01:48.3]} 34... Qxb2 {[%clk
0:01:47.8]} 35. Nf3 {[%clk 0:01:46]} 35... Qxc3 {[%clk 0:01:46.5]} 36. Rb1
{[%clk 0:01:44]} 36... Kc6 {[%clk 0:01:38]} 37. Qh7 {[%clk 0:01:40.2]} 37... Rb8
{[%clk 0:01:31]} 38. Qe7 {[%clk 0:01:37.8]} 38... b5 {[%clk 0:00:20.7]} 39. Qc5+
{[%clk 0:01:28.8]} 39... Kd7 {[%clk 0:00:21]} 40. Qxd5+ {[%clk 0:01:28.4]} 40...
Kc7 {[%clk 0:00:20.6]} 41. Qc5+ {[%clk 0:01:24.2]} 41... Kb7 {[%clk 0:00:20.5]}
42. Rxb5+ {[%clk 0:01:23.3]} 42... Ka6 {[%clk 0:00:20.9]} 43. Qc6+ {[%clk
0:01:15.9]} 43... Ka7 {[%clk 0:00:21.1]} 44. Qc7+ {[%clk 0:01:10.5]} 44... Ka6
{[%clk 0:00:21.6]} 45. Qc6+ {[%clk 0:01:09.2]} 45... Ka7 {[%clk 0:00:21.5]} 46.
Qc7+ {[%clk 0:00:19.8]} 46... Ka6 {[%clk 0:00:21.2]} 47. Rc5 {[%clk 0:00:17.1]}
47... Rb6 {[%clk 0:00:17.7]} 48. d5 {[%clk 0:00:15.5]} 48... a3 {[%clk
0:00:17.4]} 49. Rc6 {[%clk 0:00:15.6]} 49... Qe3+ {[%clk 0:00:15.3]} 50. Kh2
{[%clk 0:00:15.1]} 50... a2 {[%clk 0:00:14.3]} 51. Qd6 {[%clk 0:00:15.4]} 51...
a1=Q {[%clk 0:00:14]} 52. Rxb6+ {[%clk 0:00:14.3]} 52... Qxb6 {[%clk 0:00:14.1]}
53. Qxf8 {[%clk 0:00:14.4]} 53... Qc1 {[%clk 0:00:13.7]} 54. Qa8+ {[%clk
0:00:12.3]} 54... Kb5 {[%clk 0:00:13.7]} 55. Qa2 {[%clk 0:00:11.9]} 55... Qc7+
{[%clk 0:00:13.8]} 56. Kh3 {[%clk 0:00:11.5]} 56... Qh1+ {[%clk 0:00:13.9]} 57.
Kg4 {[%clk 0:00:11.9]} 57... Qd7+ {[%clk 0:00:13.6]} 58. Kh5 {[%clk 0:00:11.1]}
58... Qh7+ {[%clk 0:00:12.7]} 59. Kg4 {[%clk 0:00:11.4]} 59... Qg6+ {[%clk
0:00:13.4]} 60. Kf4 {[%clk 0:00:11.1]} 60... Qc1+ {[%clk 0:00:14]} 61. Nd2
{[%clk 0:00:10.4]} 61... c3 {[%clk 0:00:12.9]} 62. Qb3+ {[%clk 0:00:10.1]} 62...
Ka5 {[%clk 0:00:13]} 63. Qa2+ {[%clk 0:00:07.6]} 63... Kb4 {[%clk 0:00:13.1]}
64. Qc4+ {[%clk 0:00:07.8]} 64... Ka3 {[%clk 0:00:13.2]} 65. Qb3# {[%clk
0:00:07.9]} 1-0